bitfinex/quotes_BTCUSD_20250822
["timestamp","ask_amount","ask_price","bid_price","bid_amount"]
[1755831259546,0.16450695,113570.0,113560.0,0.00668143]
[1755831259761,0.66450695,113570.0,113560.0,0.00668143]
[1755831259995,3.42008795,113570.0,113560.0,0.00668143]
[1755831260207,0.16450695,113570.0,113560.0,0.00668143]
[1755831260428,0.66450695,113570.0,113560.0,0.00668143]
[1755831260636,3.42008795,113570.0,113560.0,0.00668143]
[1755831260884,0.16450695,113570.0,113560.0,0.00668143]
[1755831261113,3.26936795,113570.0,113560.0,0.00668143]
[1755831261334,0.01378695,113570.0,113560.0,0.00668143]
[1755831261552,0.51378695,113570.0,113560.0,0.00668143]
[1755831261789,3.26936795,113570.0,113560.0,0.00668143]
[1755831262015,0.01378695,113570.0,113560.0,0.00668143]
[1755831262247,0.51378695,113570.0,113560.0,0.00668143]
[1755831262476,3.26936795,113570.0,113560.0,0.00668143]
[1755831262706,0.01378695,113570.0,113560.0,0.00668143]
[1755831262929,0.51378695,113570.0,113560.0,0.00668143]
[1755831263153,3.26936795,113570.0,113560.0,0.00668143]
[1755831263418,0.01378695,113570.0,113560.0,0.00668143]
[1755831263644,0.51378695,113570.0,113560.0,0.00668143]
[1755831263880,3.26936795,113570.0,113560.0,0.00668143]
[1755831264093,0.01378695,113570.0,113560.0,0.00668143]
[1755831264290,0.51378695,113570.0,113560.0,0.00668143]
[1755831264514,3.26936795,113570.0,113560.0,0.00668143]
[1755831264782,0.01378695,113570.0,113560.0,0.00668143]
[1755831265027,0.51378695,113570.0,113560.0,0.00668143]
[1755831265211,3.26936795,113570.0,113560.0,0.00668143]
[1755831265462,0.01378695,113570.0,113560.0,0.00668143]
[1755831265681,0.51487695,113570.0,113560.0,0.00148143]
[1755831265912,3.27045795,113570.0,113560.0,0.00148143]
[1755831266101,0.01487695,113570.0,113560.0,0.00357143]
[1755831266230,0.51487695,113570.0,113560.0,0.00681143]
[1755831266456,3.27045795,113570.0,113560.0,0.00681143]
[1755831266842,0.01487695,113570.0,113560.0,0.00681143]
[1755831267010,3.27045795,113570.0,113560.0,0.00681143]
[1755831267289,0.01802695,113570.0,113560.0,0.00148143]
[1755831267499,0.01802695,113570.0,113560.0,0.00357143]
[1755831267500,0.51487695,113570.0,113560.0,0.00357143]
[1755831267688,0.51487695,113570.0,113560.0,0.00681143]
[1755831267689,3.27045795,113570.0,113560.0,0.00681143]
[1755831267862,0.01487695,113570.0,113560.0,0.00681143]
[1755831268078,0.51487695,113570.0,113560.0,0.00681143]
[1755831268274,3.27045795,113570.0,113560.0,0.00357143]
[1755831268567,0.01487695,113570.0,113560.0,0.00357143]
[1755831268807,0.51487695,113570.0,113560.0,0.00357143]
[1755831269035,3.27045795,113570.0,113560.0,0.00148143]
[1755831269260,0.01487695,113570.0,113560.0,0.00148143]
[1755831269486,0.51487695,113570.0,113560.0,0.00148143]
[1755831269712,3.27045795,113570.0,113560.0,0.00148143]
[1755831269928,0.01487695,113570.0,113560.0,0.00148143]
[1755831270159,0.51487695,113570.0,113560.0,0.00148143]
[1755831271520,0.51487695,113570.0,113560.0,0.00357143]
[1755831272431,0.22163,113580.0,113560.0,0.00681143]
[1755831272640,3.09108063,113570.0,113560.0,0.00148143]
[1755831272841,0.01378663,113570.0,113560.0,0.00148143]
[1755831273061,0.51378663,113570.0,113560.0,0.00148143]
[1755831273275,3.09606063,113570.0,113560.0,0.00148143]
[1755831273474,0.01876663,113570.0,113560.0,0.00148143]
[1755831273697,0.51586663,113570.0,113560.0,0.00148143]
[1755831273916,3.09316063,113570.0,113560.0,0.00148143]
[1755831274116,0.01586663,113570.0,113560.0,0.00681143]
[1755831274328,0.51586663,113570.0,113560.0,0.00681143]
[1755831274565,3.09316063,113570.0,113560.0,0.00681143]
[1755831274752,0.01586663,113570.0,113560.0,0.00681143]
[1755831274894,0.51586663,113570.0,113560.0,0.00681143]
[1755831275099,3.09316063,113570.0,113560.0,0.00681143]
[1755831275313,0.01586663,113570.0,113560.0,0.00681143]
[1755831275524,0.51586663,113570.0,113560.0,0.00148143]
[1755831275722,3.09316063,113570.0,113560.0,0.00148143]
[1755831275924,0.01586663,113570.0,113560.0,0.00148143]
[1755831276129,0.51586663,113570.0,113560.0,0.00148143]
[1755831282393,0.51586663,113570.0,113560.0,0.00357143]
[1755831282846,0.51586663,113570.0,113560.0,0.00148143]
[1755831285667,0.51346663,113570.0,113560.0,0.00148143]
[1755831286028,0.50208,113570.0,113560.0,0.00148143]
[1755831289314,0.5158668,113570.0,113560.0,0.00148143]
[1755831290938,0.5158668,113570.0,113560.0,0.00455143]
[1755831291514,0.5187668,113570.0,113560.0,0.00148143]
[1755831291948,0.5158668,113570.0,113560.0,0.00148143]
[1755831292159,0.5187668,113570.0,113560.0,0.00148143]
[1755831293149,0.1664268,113570.0,113560.0,0.00350143]
[1755831293363,0.1664268,113570.0,113560.0,0.00657143]
[1755831293566,0.65056,113570.0,113560.0,0.00657143]
[1755831293832,3.227854,113570.0,113560.0,0.00657143]
[1755831294037,0.15056,113570.0,113560.0,0.00657143]
[1755831294242,0.65056,113570.0,113560.0,0.00657143]
[1755831297433,0.15056,113570.0,113560.0,0.00657143]
[1755831298652,0.15255,113570.0,113560.0,0.00657143]
[1755831298885,0.65255,113570.0,113560.0,0.00148143]
[1755831299045,3.229844,113570.0,113560.0,0.00148143]
[1755831299261,0.15255,113570.0,113560.0,0.00148143]
[1755831299453,0.65255,113570.0,113560.0,0.00148143]
[1755831299655,3.229844,113570.0,113560.0,0.00148143]
[1755831299883,0.15255,113570.0,113560.0,0.00148143]
[1755831300114,0.65255,113570.0,113560.0,0.00148143]
[1755831300314,3.229844,113570.0,113560.0,0.00148143]
[1755831300514,0.15255,113570.0,113560.0,0.00148143]
[1755831300720,0.65255,113570.0,113560.0,0.00148143]
[1755831300934,0.65358,113570.0,113560.0,0.00148143]
[1755831301134,0.15358,113570.0,113560.0,0.00148143]
[1755831302194,0.15255,113570.0,113560.0,0.00148143]
[1755831302406,0.65255,113570.0,113560.0,0.00148143]
[1755831302623,3.229844,113570.0,113560.0,0.00350143]
[1755831302842,0.15255,113570.0,113560.0,0.00657143]
[1755831303051,0.65255,113570.0,113560.0,0.00657143]
[1755831303273,3.229844,113570.0,113560.0,0.00657143]
[1755831303501,0.15255,113570.0,113560.0,0.00657143]
[1755831303721,0.6643068,113570.0,113560.0,0.00657143]
[1755831303983,0.1643068,113570.0,113560.0,0.00657143]
[1755831306043,0.0137868,113570.0,113560.0,0.00657143]
[1755831306224,0.1642668,113570.0,113560.0,0.00657143]
[1755831307076,0.0137868,113570.0,113560.0,0.00657143]
[1755831307425,0.1642668,113570.0,113560.0,0.00657143]
[1755831309294,0.0157568,113570.0,113560.0,0.00148143]
[1755831309501,0.1662368,113570.0,113560.0,0.00148143]
[1755831318244,0.1692468,113570.0,113560.0,0.00148143]
[1755831319827,0.6692468,113570.0,113560.0,0.00148143]
[1755831320029,3.232754,113570.0,113560.0,0.00148143]
[1755831320250,0.15546,113570.0,113560.0,0.00148143]
[1755831320455,0.65546,113570.0,113560.0,0.00148143]
[1755831320725,3.232754,113570.0,113560.0,0.00148143]
[1755831320956,2.732754,113570.0,113560.0,0.00148143]
[1755831322653,2.73895661,113570.0,113560.0,0.00148143]
[1755831322964,2.80104866,113570.0,113560.0,0.00148143]
[1755831323173,2.8231075,113570.0,113560.0,0.00148143]
[1755831323382,3.07310803,113570.0,113560.0,0.00148143]
[1755831324244,3.07410803,113570.0,113560.0,0.00148143]
[1755831324465,3.16097768,113570.0,113560.0,0.00148143]
[1755831324672,3.07310803,113570.0,113560.0,0.00148143]
[1755831325060,3.07510803,113570.0,113560.0,0.00148143]
[1755831325299,3.07510345,113570.0,113560.0,0.00048143]
[1755831325715,3.07710345,113570.0,113560.0,0.00048143]
[1755831325921,3.07510345,113570.0,113560.0,0.00048143]
[1755831326123,3.07710345,113570.0,113560.0,0.00048143]
[1755831326337,3.07710345,113570.0,113560.0,0.08765984]
[1755831326540,3.06331494,113570.0,113560.0,0.08765984]
[1755831327086,3.06331494,113570.0,113560.0,0.087384]
[1755831328275,3.04057572,113570.0,113560.0,0.087384]
[1755831328482,3.06327754,113570.0,113560.0,0.087384]
[1755831328930,3.06327661,113570.0,113560.0,0.087384]
[1755831329251,3.0550183,113570.0,113560.0,0.087384]
[1755831329459,3.0688069,113570.0,113560.0,0.087384]
[1755831330366,3.15567655,113570.0,113560.0,0.087384]
[1755831330731,3.22343655,113570.0,113560.0,0.087384]
[1755831331734,3.22343429,113570.0,113560.0,0.087384]
[1755831333246,2.74993077,113570.0,113560.0,0.087384]
[1755831334160,2.74993077,113570.0,113560.0,0.08710822]
[1755831334365,2.90029077,113570.0,113560.0,0.08710822]
[1755831336251,3.09384263,113570.0,113560.0,0.08710822]
[1755831336465,3.62330368,113570.0,113560.0,0.08710822]
[1755831336656,3.60951508,113570.0,113560.0,0.08710822]
[1755831337250,3.51806754,113570.0,113560.0,0.08710822]
[1755831337684,3.45769563,113570.0,113560.0,0.08710822]
[1755831340094,3.47148593,113570.0,113560.0,0.08710822]
[1755831343719,3.47148219,113570.0,113560.0,0.08710822]
[1755831346810,3.46323487,113570.0,113560.0,0.08710822]
[1755831347040,3.47149326,113570.0,113560.0,0.08710822]
[1755831347242,3.55836291,113570.0,113560.0,0.08710822]
[1755831347402,3.58219271,113570.0,113560.0,0.08710822]
[1755831347746,3.5821944,113570.0,113560.0,0.08710822]
[1755831348982,3.5684041,113570.0,113560.0,0.08710822]
[1755831349523,3.37750586,113570.0,113560.0,0.08710822]
[1755831350960,3.62750586,113570.0,113560.0,0.08710822]
[1755831352062,3.64129603,113570.0,113560.0,0.08710822]
[1755831353301,3.51308246,113570.0,113540.0,0.0035]
[1755831353521,2.4929207,113560.0,113540.0,0.0035]
[1755831353735,2.316801,113550.0,113540.0,0.0035]
[1755831353955,2.36859685,113550.0,113510.0,0.003534]
[1755831354144,2.384601,113540.0,113490.0,0.01744902]
[1755831354430,2.316801,113530.0,113500.0,0.026501]
[1755831354648,2.467081,113520.0,113500.0,0.026501]
[1755831354861,0.15028,113510.0,113500.0,0.026501]
[1755831355286,0.15028,113510.0,113500.0,0.028631]
[1755831355714,0.15028,113510.0,113500.0,0.02877537]
[1755831355932,0.16407297,113510.0,113500.0,0.03187537]
[1755831357044,0.16507297,113510.0,113500.0,0.04587537]
[1755831358346,0.16507297,113510.0,113500.0,0.01937437]
[1755831359352,0.66507297,113510.0,113500.0,0.01937437]
[1755831359593,0.16507297,113510.0,113500.0,0.01937437]
[1755831360240,0.66507297,113510.0,113500.0,0.01937437]
[1755831360469,0.16507297,113510.0,113500.0,0.01937437]
[1755831360792,0.16507297,113510.0,113500.0,0.02396211]
[1755831361214,0.66507297,113510.0,113500.0,0.02396211]
[1755831361414,0.16507297,113510.0,113500.0,0.02396211]
[1755831362969,0.18734107,113510.0,113500.0,0.02396211]
[1755831364139,0.18734107,113510.0,113500.0,0.05046411]
[1755831364831,0.03706107,113510.0,113500.0,0.05046411]
[1755831366293,0.03706107,113510.0,113500.0,0.04587637]
[1755831370017,0.53706107,113510.0,113500.0,0.04587637]
[1755831370219,2.85386207,113510.0,113500.0,0.04587637]
[1755831370363,0.03706107,113510.0,113500.0,0.04587637]
[1755831370563,0.53706107,113510.0,113500.0,0.01937437]
[1755831370767,2.85386207,113510.0,113500.0,0.01937437]
[1755831370983,0.03706107,113510.0,113500.0,0.01937437]
[1755831371177,2.85386207,113510.0,113500.0,0.01937437]
[1755831371390,0.03706107,113510.0,113500.0,0.01937437]
[1755831371642,0.53706107,113510.0,113500.0,0.01937437]
[1755831371957,2.85386207,113510.0,113500.0,0.01937437]
[1755831372159,0.03706107,113510.0,113500.0,0.01937437]
[1755831372375,0.53706107,113510.0,113500.0,0.01937437]
[1755831372817,0.53706107,113510.0,113500.0,0.01037437]
[1755831373023,0.53606107,113510.0,113500.0,0.00537437]
[1755831373248,0.53606107,113510.0,113500.0,0.01137437]
[1755831373470,0.53606107,113510.0,113500.0,0.01437437]
[1755831373693,0.53606107,113510.0,113500.0,0.00837437]
[1755831373924,0.53606107,113510.0,113500.0,0.01137437]
[1755831374171,0.53606107,113510.0,113500.0,0.01437437]
[1755831378155,0.53787107,113510.0,113500.0,0.01437437]
[1755831378788,0.53606107,113510.0,113500.0,0.01437437]
[1755831379813,0.53787107,113510.0,113500.0,0.01437437]
[1755831381313,0.53606107,113510.0,113500.0,0.00914437]
[1755831381537,0.53606107,113510.0,113500.0,0.01432437]
[1755831382184,0.18626107,113510.0,113500.0,0.01432437]
[1755831382832,0.18626107,113510.0,113500.0,0.01652701]
[1755831383017,0.18626107,113510.0,113500.0,0.01432437]
[1755831383902,0.03606107,113510.0,113500.0,0.01432437]
[1755831384119,0.18626107,113510.0,113500.0,0.01432437]
[1755831384551,0.03606107,113510.0,113500.0,0.01432437]
[1755831384769,0.18626107,113510.0,113500.0,0.04082537]
[1755831386029,0.03606107,113510.0,113500.0,0.04082537]
[1755831386242,0.18626107,113510.0,113500.0,0.04082537]
[1755831386701,0.18626107,113510.0,113500.0,0.04534847]
[1755831387298,0.18626107,113510.0,113500.0,0.04082537]
[1755831387929,0.18645107,113510.0,113500.0,0.04082537]
[1755831388133,0.18645107,113510.0,113500.0,0.01432437]
[1755831389004,0.18645107,113510.0,113500.0,0.01225437]
[1755831389414,0.18645107,113510.0,113500.0,0.00914437]
[1755831391181,0.20520818,113510.0,113500.0,0.00914437]
[1755831391383,0.18758107,113510.0,113500.0,0.00914437]
[1755831392264,0.18758107,113510.0,113500.0,0.00314437]
[1755831392498,0.18758107,113510.0,113500.0,0.00814437]
[1755831392734,2.50438207,113510.0,113500.0,0.00514437]
[1755831392974,2.50438207,113510.0,113500.0,0.00814437]
[1755831393215,2.59125172,113510.0,113500.0,0.00814437]
[1755831393451,2.59125172,113510.0,113500.0,0.00514437]
[1755831393917,2.59125172,113510.0,113500.0,0.00814437]
[1755831395239,2.59125172,113510.0,113500.0,0.00314437]
[1755831395453,2.66525633,113510.0,113500.0,0.00714437]
[1755831395680,2.67052532,113510.0,113500.0,0.00714437]
[1755831395899,2.67052521,113510.0,113500.0,0.00414437]
[1755831396119,2.65146336,113510.0,113500.0,0.00414437]
[1755831396328,2.64525875,113510.0,113500.0,0.00414437]
[1755831396968,2.64525875,113510.0,113500.0,0.00614437]
[1755831397383,2.65146147,113510.0,113500.0,0.00414437]
[1755831397615,2.65146147,113510.0,113500.0,0.00614437]
[1755831398475,2.64525875,113510.0,113500.0,0.00614437]
[1755831398864,2.68430078,113510.0,113500.0,0.00614437]
[1755831399280,2.66525387,113510.0,113500.0,0.00614437]
[1755831400316,2.65905423,113510.0,113500.0,0.00614437]
[1755831402349,2.65905423,113510.0,113500.0,0.00214437]
[1755831402760,2.65905423,113510.0,113500.0,0.00414437]
[1755831402977,2.65905423,113510.0,113500.0,0.00014437]
[1755831403182,2.90905423,113510.0,113500.0,0.00114437]
[1755831403386,2.90905423,113510.0,113500.0,0.00314437]
[1755831403588,2.90905423,113510.0,113500.0,0.00214437]
[1755831403982,2.90792423,113510.0,113500.0,0.00314437]
[1755831404976,2.90905423,113510.0,113500.0,0.00314437]
[1755831405444,2.90792423,113510.0,113500.0,0.00314437]
[1755831407801,2.89412875,113510.0,113500.0,0.00314437]
[1755831409282,2.89525875,113510.0,113500.0,0.00314437]
[1755831409495,2.89412875,113510.0,113500.0,0.00314437]
[1755831410079,2.89525875,113510.0,113500.0,0.00314437]
[1755831410972,2.90905436,113510.0,113500.0,0.00314437]
[1755831413447,2.95079379,113510.0,113500.0,0.00314437]
[1755831414431,2.95432779,113510.0,113500.0,0.00314437]
[1755831414653,2.95319779,113510.0,113500.0,0.00314437]
[1755831415517,2.89519472,113510.0,113500.0,0.00314437]
[1755831415731,2.89669472,113510.0,113500.0,0.00314437]
[1755831415951,2.80982507,113510.0,113500.0,0.00314437]
[1755831417115,2.82986327,113510.0,113500.0,0.00314437]
[1755831418120,2.84890673,113510.0,113500.0,0.00314437]
[1755831419682,2.83511112,113510.0,113500.0,0.00314437]
[1755831419890,2.83343112,113510.0,113500.0,0.00314437]
[1755831420122,2.92030077,113510.0,113500.0,0.00314437]
[1755831421129,2.91412378,113510.0,113500.0,0.00314437]
[1755831421343,2.9203257,113510.0,113500.0,0.00314437]
[1755831422787,2.84725183,113510.0,113500.0,0.00314437]
[1755831423022,2.84721183,113510.0,113500.0,0.00515437]
[1755831423242,2.84721183,113510.0,113500.0,0.00809437]
[1755831423458,2.85548663,113510.0,113500.0,0.00809437]
[1755831423895,2.85549777,113510.0,113500.0,0.00809437]
[1755831424014,2.85549777,113510.0,113500.0,0.00608437]
[1755831424242,2.94236742,113510.0,113500.0,0.00608437]
[1755831424700,2.94236742,113510.0,113500.0,0.00314437]
[1755831426761,2.94236742,113510.0,113500.0,0.00608437]
[1755831426972,2.85549777,113510.0,113500.0,0.00608437]
[1755831428617,2.85549777,113510.0,113500.0,0.00314437]
[1755831429937,2.855518,113510.0,113500.0,0.00314437]
[1755831430341,2.82447144,113510.0,113500.0,0.00314437]
[1755831430588,2.85551832,113510.0,113500.0,0.00314437]
[1755831430736,2.94238797,113510.0,113500.0,0.00314437]
[1755831433039,2.94238823,113510.0,113500.0,0.00314437]
[1755831433515,2.85551858,113510.0,113500.0,0.00314437]
[1755831436305,2.85551905,113510.0,113500.0,0.00314437]
[1755831437238,2.85551905,113510.0,113500.0,0.00609437]
[1755831438087,2.70393905,113510.0,113500.0,0.00820437]
[1755831438311,2.85044505,113510.0,113500.0,0.00820437]
[1755831438741,2.83664927,113510.0,113500.0,0.00820437]
[1755831439226,2.83043943,113510.0,113500.0,0.00820437]
[1755831439474,2.83665319,113510.0,113500.0,0.00820437]
[1755831440196,2.77348284,113510.0,113500.0,0.00820437]
[1755831440432,2.92352284,113510.0,113500.0,0.00820437]
[1755831441791,2.9378086,113510.0,113500.0,0.00820437]
[1755831442814,2.85044895,113510.0,113500.0,0.00820437]
[1755831446619,2.83665319,113510.0,113500.0,0.00820437]
[1755831446858,2.83815319,113510.0,113500.0,0.00820437]
[1755831448625,2.83814892,113510.0,113500.0,0.00314437]
[1755831449526,2.85194488,113510.0,113500.0,0.00820437]
[1755831450095,2.90076384,113510.0,113500.0,0.00820437]
[1755831450293,2.89248457,113510.0,113500.0,0.00820437]
[1755831450498,2.89248457,113510.0,113500.0,0.00609437]
[1755831450715,2.90170373,113510.0,113500.0,0.00314437]
[1755831450916,3.38759383,113510.0,113500.0,0.00314437]
[1755831451120,3.39152783,113510.0,113500.0,0.00314437]
[1755831451320,3.24054783,113510.0,113500.0,0.00314437]
[1755831451699,2.70583877,113510.0,113500.0,0.00820437]
[1755831451832,2.85587877,113510.0,113500.0,0.00609437]
[1755831452047,2.85587877,113510.0,113500.0,0.00314437]
[1755831452846,2.85681877,113510.0,113500.0,0.00314437]
[1755831453305,2.85587877,113510.0,113500.0,0.00314437]
[1755831453511,2.94274842,113510.0,113500.0,0.00314437]
[1755831457680,2.92618988,113510.0,113500.0,0.00314437]
[1755831457892,2.94274617,113510.0,113500.0,0.00314437]
[1755831458121,2.92895021,113510.0,113500.0,0.00314437]
[1755831458740,2.9289501,113510.0,113500.0,0.00314437]
[1755831458962,2.84208045,113510.0,113500.0,0.00314437]
[1755831461035,2.85587653,113510.0,113500.0,0.00314437]
[1755831467002,2.83104072,113510.0,113500.0,0.00314437]
[1755831467313,2.85587436,113510.0,113500.0,0.00314437]
[1755831467678,2.85587422,113510.0,113500.0,0.00314437]
[1755831467875,2.94274387,113510.0,113500.0,0.00314437]
[1755831470263,2.94274419,113510.0,113500.0,0.00314437]
[1755831473793,2.94274419,113510.0,113500.0,0.00611437]
[1755831474000,2.85587454,113510.0,113500.0,0.00611437]
[1755831476229,2.82483174,113510.0,113500.0,0.00611437]
[1755831476456,2.85587961,113510.0,113500.0,0.00611437]
[1755831476857,2.85587966,113510.0,113500.0,0.00611437]
[1755831478731,2.94274931,113510.0,113500.0,0.00611437]
[1755831478950,2.85587966,113510.0,113500.0,0.00611437]
[1755831479372,2.87967239,113510.0,113500.0,0.00611437]
[1755831479811,2.87967239,113510.0,113500.0,0.00816437]
[1755831480408,2.87967239,113510.0,113500.0,0.00611437]
[1755831481879,0.77294863,113500.0,113470.0,0.003935]
[1755831482088,0.14996,113490.0,113470.0,0.00441691]
[1755831482286,0.77294863,113500.0,113490.0,0.00205]
[1755831482510,3.26513077,113500.0,113490.0,0.00205]
[1755831482866,3.27892772,113500.0,113490.0,0.00205]
[1755831483915,3.27892772,113500.0,113490.0,0.00502]
[1755831484545,3.2789277,113500.0,113490.0,0.00802]
[1755831484755,3.27892769,113500.0,113490.0,0.00802]
[1755831485239,3.27892769,113500.0,113490.0,0.00902]
[1755831485651,3.34672769,113500.0,113490.0,0.00902]
[1755831487769,3.3467277,113500.0,113490.0,0.00902]
[1755831489247,3.43359735,113500.0,113490.0,0.00902]
[1755831489459,3.43567735,113500.0,113490.0,0.00902]
[1755831489879,3.43567735,113500.0,113490.0,0.00605]
[1755831491563,3.43567735,113500.0,113490.0,0.004]
[1755831493564,3.43866735,113500.0,113490.0,0.004]
[1755831493768,3.44695086,113500.0,113490.0,0.004]
[1755831493973,3.45417765,113500.0,113490.0,0.004]
[1755831494185,3.47474647,113500.0,113490.0,0.004]
[1755831494363,3.47474647,113500.0,113490.0,0.003]
[1755831494522,3.4747344,113500.0,113490.0,0.003]
[1755831494732,3.4747344,113500.0,113470.0,0.00385191]
[1755831494930,2.45028,113490.0,113470.0,0.00385191]
[1755831495144,2.45028,113480.0,113470.0,0.00385191]
[1755831495350,0.14992,113480.0,113470.0,0.00590191]
[1755831495570,0.64992,113480.0,113470.0,0.00590191]
[1755831495745,2.95028,113480.0,113470.0,0.00590191]
[1755831495948,0.16371793,113480.0,113470.0,0.00590191]
[1755831496244,2.98170022,113480.0,113470.0,0.00590191]
[1755831496432,0.18134022,113480.0,113470.0,0.00590191]
[1755831496726,0.68134022,113480.0,113470.0,0.00790191]
[1755831496977,2.98170022,113480.0,113470.0,0.00590191]
[1755831497125,0.18134022,113480.0,113470.0,0.00890191]
[1755831497340,0.68134022,113480.0,113470.0,0.00890191]
[1755831497534,2.98170022,113480.0,113470.0,0.00990191]
[1755831497742,0.18134022,113480.0,113470.0,0.00990191]
[1755831497948,0.68334022,113480.0,113470.0,0.00488191]
[1755831498151,2.96607793,113480.0,113470.0,0.00993191]
[1755831498344,0.16571793,113480.0,113470.0,0.00993191]
[1755831498551,2.96407793,113480.0,113470.0,0.00993191]
[1755831498795,0.16371793,113480.0,113470.0,0.00993191]
[1755831499342,0.14992,113480.0,113470.0,0.00993191]
[1755831501482,0.64992,113480.0,113470.0,0.00993191]
[1755831501716,2.95028,113480.0,113470.0,0.00993191]
[1755831501922,0.165718,113480.0,113470.0,0.00993191]
[1755831502157,0.665718,113480.0,113470.0,0.00685191]
[1755831502344,2.966078,113480.0,113470.0,0.00685191]
[1755831502531,0.165718,113480.0,113470.0,0.00685191]
[1755831502712,2.966078,113480.0,113470.0,0.00685191]
[1755831502934,0.165718,113480.0,113470.0,0.00685191]
[1755831503134,0.665718,113480.0,113470.0,0.00685191]
[1755831503299,2.966078,113480.0,113470.0,0.00993191]
[1755831503506,0.165718,113480.0,113470.0,0.00993191]
[1755831503874,0.665718,113480.0,113470.0,0.00993191]
[1755831504090,2.966078,113480.0,113470.0,0.00993191]
[1755831504320,0.165718,113480.0,113470.0,0.00993191]
[1755831504530,0.665718,113480.0,113470.0,0.00993191]
[1755831504734,2.966078,113480.0,113470.0,0.00993191]
[1755831504942,0.165718,113480.0,113470.0,0.00993191]
[1755831505156,0.665718,113480.0,113470.0,0.00993191]
[1755831505400,2.966078,113480.0,113470.0,0.00993191]
[1755831505632,0.165718,113480.0,113470.0,0.00993191]
[1755831505849,0.665718,113480.0,113470.0,0.00993191]
[1755831506066,2.966078,113480.0,113470.0,0.00993191]
[1755831506312,0.165718,113480.0,113470.0,0.00993191]
[1755831506561,0.665718,113480.0,113470.0,0.00993191]
[1755831515281,0.665718,113480.0,113470.0,0.00685191]
[1755831515450,0.665718,113480.0,113470.0,0.00993191]
[1755831518972,1.165718,113480.0,113470.0,0.00993191]
[1755831519193,0.665718,113480.0,113470.0,0.00993191]
[1755831521682,0.665718,113480.0,113470.0,0.00685191]
[1755831521891,0.665718,113480.0,113470.0,0.00993191]
[1755831524760,0.665718,113480.0,113470.0,0.00685191]
[1755831526693,0.7383291,113480.0,113470.0,0.00488191]
[1755831526916,0.668798,113480.0,113470.0,0.00488191]
[1755831529292,3.36890387,113480.0,113470.0,0.00288191]
[1755831529521,3.28191422,113480.0,113470.0,0.00288191]
[1755831529993,3.34971422,113480.0,113470.0,0.00288191]
[1755831531143,3.36351152,113480.0,113470.0,0.00288191]
[1755831531371,3.37177683,113480.0,113470.0,0.00288191]
[1755831531808,3.37177423,113480.0,113470.0,0.00288191]
[1755831532030,3.45864293,113480.0,113470.0,0.00288191]
[1755831534197,3.45036609,113480.0,113470.0,0.00288191]
[1755831534414,3.36349215,113480.0,113470.0,0.00288191]
[1755831535068,3.34073512,113480.0,113470.0,0.00288191]
[1755831535297,3.36349054,113480.0,113470.0,0.00288191]
[1755831536433,3.36349054,113480.0,113450.0,0.95231191]
[1755831536642,2.114999,113470.0,113460.0,0.00014435]
[1755831536887,2.20391865,113470.0,113460.0,0.00014435]
[1755831538050,2.35367865,113470.0,113460.0,0.00014435]
[1755831538257,2.35677865,113470.0,113450.0,0.94395626]
[1755831538463,2.264759,113460.0,113450.0,0.92500103]
[1755831538668,0.23867965,113460.0,113450.0,0.92703103]
[1755831538872,0.15181,113460.0,113450.0,0.92187103]
[1755831539319,0.16561104,113460.0,113450.0,0.92187103]
[1755831539537,0.15181,113460.0,113450.0,0.92187103]
[1755831539926,0.40181,113460.0,113450.0,0.92187103]
[1755831541853,0.41561131,113460.0,113450.0,0.92187103]
[1755831542043,2.59086401,113460.0,113450.0,0.92187103]
[1755831542519,2.59086401,113460.0,113450.0,0.91282103]
[1755831543455,2.59396401,113460.0,113450.0,0.91282103]
[1755831543699,2.61670713,113460.0,113450.0,0.91282103]
[1755831543914,2.64403234,113460.0,113450.0,0.91282103]
[1755831544134,2.67055434,113460.0,113450.0,0.91282103]
[1755831544539,2.66228336,113460.0,113450.0,0.91282103]
[1755831544760,2.67054989,113460.0,113450.0,0.91282103]
[1755831544978,3.33293396,113460.0,113450.0,0.91282103]
[1755831545427,3.33293396,113460.0,113450.0,0.66282103]
[1755831545849,3.15666039,113460.0,113450.0,0.66282103]
[1755831545985,3.33291847,113460.0,113450.0,0.66282103]
[1755831546184,3.33391847,113460.0,113450.0,0.66282103]
[1755831546614,3.35136749,113460.0,113450.0,0.66282103]
[1755831546818,3.40136749,113460.0,113450.0,0.66282103]
[1755831547528,3.40336749,113460.0,113450.0,0.06317936]
[1755831547938,3.40336749,113460.0,113450.0,0.06520936]
[1755831547939,2.6703944,113460.0,113450.0,0.06520936]
[1755831548148,2.6101407,113460.0,113450.0,0.06833936]
[1755831548579,2.60187417,113460.0,113450.0,0.06317936]
[1755831549004,2.58533641,113460.0,113450.0,0.06317936]
[1755831549231,2.60184273,113460.0,113450.0,0.06317936]
[1755831549448,2.69181238,113460.0,113450.0,0.06317936]
[1755831549667,3.17791365,113460.0,113450.0,0.06317936]
[1755831549887,3.35418722,113460.0,113450.0,0.06317936]
[1755831550087,3.42988816,113460.0,113450.0,0.06317936]
[1755831552248,3.41338181,113460.0,113450.0,0.06317936]
[1755831552460,3.42987894,113460.0,113450.0,0.06317936]
[1755831552873,3.08333635,113460.0,113450.0,0.06317936]
[1755831553082,2.59978354,113460.0,113450.0,0.06833936]
[1755831553291,2.58277931,113460.0,113450.0,0.06833936]
[1755831553540,2.58277931,113460.0,113450.0,0.06593936]
[1755831553767,2.60178189,113460.0,113450.0,0.06077936]
[1755831553946,2.69175154,113460.0,113450.0,0.06077936]
[1755831554307,3.17785664,113460.0,113450.0,0.06077936]
[1755831554715,3.14154355,113460.0,113450.0,0.06077936]
[1755831554920,3.2247914,113460.0,113450.0,0.06077936]
[1755831555333,3.22478864,113460.0,113450.0,0.06077936]
[1755831556206,3.21098733,113460.0,113450.0,0.06077936]
[1755831556410,3.22479213,113460.0,113450.0,0.06077936]
[1755831558445,3.19386004,113460.0,113450.0,0.06077936]
[1755831558827,3.22479151,113460.0,113450.0,0.06077936]
[1755831559063,3.22479092,113460.0,113450.0,0.06077936]
[1755831560466,3.2486228,113460.0,113450.0,0.06077936]
[1755831561764,3.24862279,113460.0,113450.0,0.06077936]
[1755831564749,3.25650158,113460.0,113450.0,0.06077936]
[1755831565329,3.3040479,113460.0,113450.0,0.06077936]
[1755831566107,3.3009079,113460.0,113450.0,0.06077936]
[1755831566518,3.3040879,113460.0,113450.0,0.06077936]
[1755831567198,3.3009079,113460.0,113450.0,0.06077936]
[1755831567400,3.26919723,113460.0,113450.0,0.06077936]
[1755831567721,3.27237723,113460.0,113450.0,0.06077936]
[1755831567923,3.25588687,113460.0,113450.0,0.06077936]
[1755831568150,3.27240999,113460.0,113450.0,0.06077936]
[1755831568355,0.19373813,113450.0,113440.0,0.00335]
[1755831568573,0.19373813,113450.0,113440.0,0.0053582]
[1755831568574,2.61251761,113450.0,113440.0,0.0053582]
[1755831569014,2.2865485,113450.0,113440.0,0.0053582]
[1755831569225,2.4415865,113450.0,113440.0,0.0053582]
[1755831569608,2.61787561,113450.0,113440.0,0.0053582]
[1755831569826,2.63783561,113450.0,113440.0,0.0053582]